[Event "Live Chess"]
[Site "Chess.com"]
[Date "2023.05.20"]
[Round "-"]
[White "PantherCal"]
[Black "OleksiyJr1"]
[Result "1-0"]
[WhiteElo "1835"]
[BlackElo "909"]
[TimeControl "300"]
[EndTime "11:21:11 PDT"]
[Termination "PantherCal won on time"]

1. e4 {[%clk 0:04:56.3]} 1... c5 {[%clk 0:04:50.9]} 2. c3 {[%clk 0:04:54.9]}
2... Nc6 {[%clk 0:04:49.5]} 3. d4 {[%clk 0:04:53.7]} 3... cxd4 {[%clk
0:04:47.7]} 4. cxd4 {[%clk 0:04:53.6]} 4... Nf6 {[%clk 0:04:46.3]} 5. e5 {[%clk
0:04:52.3]} 5... Nd5 {[%clk 0:04:42.9]} 6. Bc4 {[%clk 0:04:52]} 6... e6 {[%clk
0:04:41.9]} 7. Nf3 {[%clk 0:04:49.8]} 7... a6 {[%clk 0:04:40.3]} 8. O-O {[%clk
0:04:48.7]} 8... Bb4 {[%clk 0:04:13.4]} 9. Bd2 {[%clk 0:04:43.1]} 9... Bxd2
{[%clk 0:04:10.8]} 10. Qxd2 {[%clk 0:04:43]} 10... O-O {[%clk 0:04:09.3]} 11.
Bxd5 {[%clk 0:04:41.5]} 11... exd5 {[%clk 0:04:07.6]} 12. Nc3 {[%clk 0:04:41.4]}
12... Ne7 {[%clk 0:03:43.8]} 13. Rac1 {[%clk 0:04:25.3]} 13... b5 {[%clk
0:03:42.2]} 14. a3 {[%clk 0:04:24]} 14... Bb7 {[%clk 0:03:41.6]} 15. b4 {[%clk
0:04:22.1]} 15... Rc8 {[%clk 0:03:39.2]} 16. Ne2 {[%clk 0:04:19.9]} 16... Qb6
{[%clk 0:03:33.6]} 17. Qd3 {[%clk 0:04:02.7]} 17... a5 {[%clk 0:03:22.4]} 18.
Nd2 {[%clk 0:04:00.9]} 18... a4 {[%clk 0:03:19.1]} 19. Rc5 {[%clk 0:03:53.5]}
19... Bc6 {[%clk 0:03:01.4]} 20. Rfc1 {[%clk 0:03:51.1]} 20... g6 {[%clk
0:02:56.4]} 21. Nf4 {[%clk 0:03:47.2]} 21... Nf5 {[%clk 0:02:51.3]} 22. Nf3
{[%clk 0:03:40.1]} 22... d6 {[%clk 0:02:43.6]} 23. R5c2 {[%clk 0:03:24.4]} 23...
dxe5 {[%clk 0:02:36.3]} 24. dxe5 {[%clk 0:03:20.1]} 24... Ne7 {[%clk 0:02:29.5]}
25. e6 {[%clk 0:03:17.6]} 25... Rc7 {[%clk 0:02:15.8]} 26. exf7+ {[%clk
0:03:06.7]} 26... Rxf7 {[%clk 0:02:15.7]} 27. Ne6 {[%clk 0:03:04.5]} 27... Rc8
{[%clk 0:02:04.9]} 28. Ne5 {[%clk 0:02:46.2]} 28... Rf5 {[%clk 0:01:55.1]} 29.
Nxc6 {[%clk 0:02:35]} 29... Rxc6 {[%clk 0:01:43.2]} 30. Nd4 {[%clk 0:02:05.5]}
30... Rxc2 {[%clk 0:01:36.6]} 31. Rxc2 {[%clk 0:02:05.4]} 31... Rf8 {[%clk
0:01:27.7]} 32. Rc5 {[%clk 0:01:54]} 32... Rc8 {[%clk 0:01:22.4]} 33. Qxb5
{[%clk 0:01:42.9]} 33... Qxb5 {[%clk 0:01:14.2]} 34. Nxb5 {[%clk 0:01:35.2]}
34... Re8 {[%clk 0:01:02.1]} 35. Nc7 {[%clk 0:01:27.3]} 35... Rc8 {[%clk
0:00:56.4]} 36. Nxd5 {[%clk 0:00:56.9]} 36... Re8 {[%clk 0:00:42]} 37. Nxe7+
{[%clk 0:00:53.1]} 37... Rxe7 {[%clk 0:00:40.4]} 38. g3 {[%clk 0:00:51.4]} 38...
Re1+ {[%clk 0:00:37]} 39. Kg2 {[%clk 0:00:49.6]} 39... Ra1 {[%clk 0:00:36.6]}
40. b5 {[%clk 0:00:45.4]} 40... Rxa3 {[%clk 0:00:35.5]} 41. b6 {[%clk
0:00:44.8]} 41... Rb3 {[%clk 0:00:34.8]} 42. Ra5 {[%clk 0:00:38.4]} 42... a3
{[%clk 0:00:32.7]} 43. b7 {[%clk 0:00:35.8]} 43... Rxb7 {[%clk 0:00:31.3]} 44.
Rxa3 {[%clk 0:00:34.9]} 44... Rb2 {[%clk 0:00:30.6]} 45. Re3 {[%clk 0:00:33.4]}
45... Kf7 {[%clk 0:00:28.6]} 46. h4 {[%clk 0:00:33.3]} 46... h5 {[%clk
0:00:26.5]} 47. Rf3+ {[%clk 0:00:30.7]} 47... Ke6 {[%clk 0:00:24.2]} 48. Rc3
{[%clk 0:00:30.6]} 48... Rb6 {[%clk 0:00:22.4]} 49. Rc5 {[%clk 0:00:29.9]} 49...
Kf7 {[%clk 0:00:21.4]} 50. Rg5 {[%clk 0:00:29]} 50... Kg7 {[%clk 0:00:20.9]} 51.
Kh3 {[%clk 0:00:26.7]} 51... Kh6 {[%clk 0:00:20.5]} 52. f3 {[%clk 0:00:25.5]}
52... Kg7 {[%clk 0:00:19.7]} 53. g4 {[%clk 0:00:24.6]} 53... Kh6 {[%clk
0:00:17.7]} 54. gxh5 {[%clk 0:00:22.8]} 54... gxh5 {[%clk 0:00:16.9]} 55. Kg3
{[%clk 0:00:22.4]} 55... Rg6 {[%clk 0:00:14.3]} 56. f4 {[%clk 0:00:21]} 56...
Re6 {[%clk 0:00:10.8]} 57. f5 {[%clk 0:00:19.4]} 57... Re3+ {[%clk 0:00:09.6]}
58. Kf4 {[%clk 0:00:18.8]} 58... Rb3 {[%clk 0:00:07.9]} 59. f6 {[%clk
0:00:17.7]} 59... Rb4+ {[%clk 0:00:07.8]} 60. Kf5 {[%clk 0:00:16.9]} 60... Rb5+
{[%clk 0:00:07.1]} 61. Ke6 {[%clk 0:00:16]} 61... Rb6+ {[%clk 0:00:06.4]} 62.
Kf7 {[%clk 0:00:14.5]} 62... Rb7+ {[%clk 0:00:04.3]} 63. Ke8 {[%clk 0:00:13.1]}
63... Rb8+ {[%clk 0:00:03.5]} 64. Kd7 {[%clk 0:00:12.2]} 64... Rb7+ {[%clk
0:00:03]} 65. Kc8 {[%clk 0:00:11.5]} 65... Rb6 {[%clk 0:00:01.8]} 66. f7 {[%clk
0:00:10.3]} 66... Rc6+ {[%clk 0:00:01.2]} 67. Kd7 {[%clk 0:00:09.3]} 67... Rf6
{[%clk 0:00:00.6]} 68. Ke7 {[%clk 0:00:08.5]} 1-0

[Event "Live Chess"]
[Site "Chess.com"]
[Date "2023.05.20"]
[Round "-"]
[White "zdanevych"]
[Black "DerbyKnight"]
[Result "0-1"]
[WhiteElo "1541"]
[BlackElo "1695"]
[TimeControl "300"]
[EndTime "11:21:13 PDT"]
[Termination "DerbyKnight won by checkmate"]

1. d4 {[%clk 0:04:59]} 1... d5 {[%clk 0:04:53]} 2. c4 {[%clk 0:04:56.4]} 2... e6
{[%clk 0:04:51.2]} 3. Nc3 {[%clk 0:04:54.9]} 3... Nf6 {[%clk 0:04:50.3]} 4. cxd5
{[%clk 0:04:53.2]} 4... exd5 {[%clk 0:04:48.7]} 5. Nf3 {[%clk 0:04:49.3]} 5...
c6 {[%clk 0:04:46.1]} 6. Bg5 {[%clk 0:04:47.3]} 6... Be7 {[%clk 0:04:39.9]} 7.
h3 {[%clk 0:04:45.9]} 7... O-O {[%clk 0:04:36.8]} 8. e3 {[%clk 0:04:41.2]} 8...
h6 {[%clk 0:04:35.1]} 9. Bh4 {[%clk 0:04:40]} 9... Re8 {[%clk 0:04:33.2]} 10.
Bd3 {[%clk 0:04:37.4]} 10... Ne4 {[%clk 0:04:30.7]} 11. Bxe7 {[%clk 0:04:33.4]}
11... Qxe7 {[%clk 0:04:30.6]} 12. O-O {[%clk 0:04:31.3]} 12... Bf5 {[%clk
0:04:27.9]} 13. Ne5 {[%clk 0:04:23]} 13... f6 {[%clk 0:04:17.4]} 14. Nf3 {[%clk
0:04:10.2]} 14... Nd7 {[%clk 0:04:10.3]} 15. Nh4 {[%clk 0:04:07.6]} 15... Bh7
{[%clk 0:04:04.1]} 16. Nxe4 {[%clk 0:04:04.5]} 16... dxe4 {[%clk 0:04:01.7]} 17.
Bc4+ {[%clk 0:03:57.5]} 17... Kh8 {[%clk 0:04:00]} 18. Qg4 {[%clk 0:03:49]}
18... Nb6 {[%clk 0:03:36]} 19. Bb3 {[%clk 0:03:40]} 19... Nd5 {[%clk 0:03:24.1]}
20. Ng6+ {[%clk 0:03:28.8]} 20... Bxg6 {[%clk 0:03:22.3]} 21. Qxg6 {[%clk
0:03:28.7]} 21... Rf8 {[%clk 0:03:12.2]} 22. Qg4 {[%clk 0:03:22]} 22... f5
{[%clk 0:03:08.9]} 23. Qe2 {[%clk 0:03:17.1]} 23... f4 {[%clk 0:03:03.3]} 24.
Rac1 {[%clk 0:03:11.3]} 24... f3 {[%clk 0:02:59.4]} 25. gxf3 {[%clk 0:03:09.8]}
25... exf3 {[%clk 0:02:57.5]} 26. Qd3 {[%clk 0:02:56.6]} 26... Qg5+ {[%clk
0:02:52.9]} 27. Kh2 {[%clk 0:02:55.9]} 27... Qg2# {[%clk 0:02:51.2]} 0-1

[Event "Live Chess"]
[Site "Chess.com"]
[Date "2023.05.20"]
[Round "-"]
[White "AyannaTang"]
[Black "WelshTiger"]
[Result "0-1"]
[WhiteElo "176"]
[BlackElo "2431"]
[TimeControl "300"]
[EndTime "11:21:20 PDT"]
[Termination "WelshTiger won on time"]

1. e4 {[%clk 0:04:49.6]} 1... c5 {[%clk 0:04:58.8]} 2. d4 {[%clk 0:04:46.8]}
2... cxd4 {[%clk 0:04:57.3]} 3. Bc4 {[%clk 0:04:44.1]} 3... e6 {[%clk
0:04:52.8]} 4. Bf4 {[%clk 0:04:41.3]} 4... Nc6 {[%clk 0:04:50.1]} 5. Nf3 {[%clk
0:04:37.4]} 5... d6 {[%clk 0:04:44.4]} 6. c3 {[%clk 0:04:35]} 6... e5 {[%clk
0:04:41.1]} 7. Bg3 {[%clk 0:04:25.6]} 7... dxc3 {[%clk 0:04:35.6]} 8. Nxc3
{[%clk 0:04:24.2]} 8... Be7 {[%clk 0:04:31.6]} 9. Qd2 {[%clk 0:04:10.1]} 9...
Nf6 {[%clk 0:04:30.3]} 10. O-O-O {[%clk 0:04:06.4]} 10... Bg4 {[%clk 0:04:26.5]}
11. h3 {[%clk 0:04:02.5]} 11... Bxf3 {[%clk 0:04:25.7]} 12. gxf3 {[%clk
0:03:57.5]} 12... Nd4 {[%clk 0:04:25.1]} 13. Rhe1 {[%clk 0:03:37.9]} 13... Nxf3
{[%clk 0:04:22.4]} 14. Qe2 {[%clk 0:02:54.5]} 14... Nxe1 {[%clk 0:04:11.2]} 15.
Rxe1 {[%clk 0:02:47]} 15... a6 {[%clk 0:04:08.8]} 16. Bb3 {[%clk 0:02:31.8]}
16... Rc8 {[%clk 0:04:07.2]} 17. Rg1 {[%clk 0:02:14.2]} 17... Qa5 {[%clk
0:03:58.8]} 18. Qd2 {[%clk 0:01:48.8]} 18... Rxc3+ {[%clk 0:03:53]} 19. bxc3
{[%clk 0:01:43.3]} 19... Nxe4 {[%clk 0:03:44.8]} 20. Qd3 {[%clk 0:01:36.3]}
20... Qxc3+ {[%clk 0:03:42.7]} 21. Qxc3 {[%clk 0:01:31.2]} 21... Nxc3 {[%clk
0:03:42.6]} 22. Kc2 {[%clk 0:01:17.5]} 22... Nb5 {[%clk 0:03:40.1]} 23. Ba4
{[%clk 0:01:15]} 23... O-O {[%clk 0:03:35.5]} 24. Bxb5 {[%clk 0:01:12.2]} 24...
axb5 {[%clk 0:03:35.4]} 25. Rb1 {[%clk 0:00:51.1]} 25... Ra8 {[%clk 0:03:15.6]}
26. Rxb5 {[%clk 0:00:48.9]} 26... Rxa2+ {[%clk 0:03:13.7]} 27. Kb1 {[%clk
0:00:45.9]} 27... Ra7 {[%clk 0:03:12.1]} 28. Rb6 {[%clk 0:00:39.6]} 28... f5
{[%clk 0:03:09.1]} 29. f4 {[%clk 0:00:30.7]} 29... e4 {[%clk 0:03:04.3]} 30. Bf2
{[%clk 0:00:27.8]} 30... Kf7 {[%clk 0:03:01.9]} 31. Rb4 {[%clk 0:00:22.1]} 31...
Ra3 {[%clk 0:02:57]} 32. Bb6 {[%clk 0:00:16]} 32... Rxh3 {[%clk 0:02:54.4]} 33.
Rb5 {[%clk 0:00:11.9]} 33... Ke6 {[%clk 0:02:52.9]} 34. Bd8 {[%clk 0:00:09.1]}
34... Bxd8 {[%clk 0:02:50.8]} 35. Rxb7 {[%clk 0:00:07.9]} 35... Bf6 {[%clk
0:02:50]} 36. Rb5 {[%clk 0:00:04.7]} 36... Rf3 {[%clk 0:02:48.3]} 37. Kc2 {[%clk
0:00:02.2]} 37... Rxf4 {[%clk 0:02:47.7]} 38. Kb3 {[%clk 0:00:00.1]} 38... g5
{[%clk 0:02:46.8]} 0-1

[Event "Live Chess"]
[Site "Chess.com"]
[Date "2023.05.20"]
[Round "-"]
[White "Lewstar1"]
[Black "Driftboard"]
[Result "0-1"]
[WhiteElo "450"]
[BlackElo "691"]
[TimeControl "300"]
[EndTime "11:21:26 PDT"]
[Termination "Driftboard won by checkmate"]

1. e4 {[%clk 0:04:57.2]} 1... e5 {[%clk 0:04:59]} 2. Nc3 {[%clk 0:04:56.3]} 2...
Nc6 {[%clk 0:04:57.8]} 3. Bc4 {[%clk 0:04:54.5]} 3... Nf6 {[%clk 0:04:57.1]} 4.
d3 {[%clk 0:04:53.2]} 4... Bb4 {[%clk 0:04:56.2]} 5. f4 {[%clk 0:04:52]} 5...
exf4 {[%clk 0:04:53.9]} 6. Bxf4 {[%clk 0:04:51.9]} 6... O-O {[%clk 0:04:52.3]}
7. h4 {[%clk 0:04:44.6]} 7... Bxc3+ {[%clk 0:04:51]} 8. bxc3 {[%clk 0:04:44.5]}
8... d6 {[%clk 0:04:50.1]} 9. d4 {[%clk 0:04:43.9]} 9... Na5 {[%clk 0:04:46.9]}
10. Bb3 {[%clk 0:04:39.9]} 10... Nxb3 {[%clk 0:04:44.9]} 11. axb3 {[%clk
0:04:39.8]} 11... b6 {[%clk 0:04:42.8]} 12. c4 {[%clk 0:04:38.5]} 12... c5
{[%clk 0:04:40.7]} 13. dxc5 {[%clk 0:04:31.7]} 13... dxc5 {[%clk 0:04:39.6]} 14.
Qf3 {[%clk 0:04:25.4]} 14... Qd4 {[%clk 0:04:34.4]} 15. Rd1 {[%clk 0:04:12.8]}
15... Qxe4+ {[%clk 0:04:27.5]} 16. Qxe4 {[%clk 0:04:10]} 16... Nxe4 {[%clk
0:04:26]} 17. Nf3 {[%clk 0:04:05.6]} 17... Bg4 {[%clk 0:04:23.6]} 18. Rd7 {[%clk
0:03:59.2]} 18... Nf6 {[%clk 0:04:16.3]} 19. Rd6 {[%clk 0:03:35.2]} 19... Bxf3
{[%clk 0:04:13.2]} 20. gxf3 {[%clk 0:03:33.1]} 20... Rad8 {[%clk 0:04:10.7]} 21.
Rd7 {[%clk 0:03:30.6]} 21... Rxd7 {[%clk 0:04:09]} 22. h5 {[%clk 0:03:18.1]}
22... Re8+ {[%clk 0:04:03.3]} 23. Kf2 {[%clk 0:03:11.6]} 23... h6 {[%clk
0:03:17.6]} 24. Kg3 {[%clk 0:02:56.5]} 24... Kh7 {[%clk 0:03:13]} 25. Bc1 {[%clk
0:02:44.9]} 25... g6 {[%clk 0:03:06.9]} 26. hxg6+ {[%clk 0:02:42.4]} 26... fxg6
{[%clk 0:03:05.7]} 27. f4 {[%clk 0:02:42.3]} 27... Nh5+ {[%clk 0:03:02.2]} 28.
Kg4 {[%clk 0:02:40.3]} 28... Rd4 {[%clk 0:02:55.8]} 29. c3 {[%clk 0:02:33.6]}
29... Rd3 {[%clk 0:02:49.5]} 30. f5 {[%clk 0:02:27.6]} 30... Re4+ {[%clk
0:02:43.3]} 31. Bf4 {[%clk 0:02:18.1]} 31... Rxf4# {[%clk 0:02:42]} 0-1

[Event "Live Chess"]
[Site "Chess.com"]
[Date "2023.05.20"]
[Round "-"]
[White "ranvir123"]
[Black "worldchessleaguelive"]
[Result "1-0"]
[WhiteElo "905"]
[BlackElo "1348"]
[TimeControl "300"]
[EndTime "11:21:32 PDT"]
[Termination "ranvir123 won on time"]

1. e4 {[%clk 0:04:58.8]} 1... d5 {[%clk 0:04:58]} 2. Nf3 {[%clk 0:04:58.3]} 2...
dxe4 {[%clk 0:04:56.6]} 3. Ng5 {[%clk 0:04:57.1]} 3... h6 {[%clk 0:04:53.4]} 4.
Nxe4 {[%clk 0:04:55.3]} 4... Nf6 {[%clk 0:04:52]} 5. Nxf6+ {[%clk 0:04:54]} 5...
exf6 {[%clk 0:04:50.7]} 6. Qe2+ {[%clk 0:04:51.2]} 6... Qe7 {[%clk 0:04:49.8]}
7. Qxe7+ {[%clk 0:04:50.1]} 7... Bxe7 {[%clk 0:04:49.1]} 8. d4 {[%clk
0:04:49.4]} 8... O-O {[%clk 0:04:48.1]} 9. Nc3 {[%clk 0:04:49.1]} 9... Re8
{[%clk 0:04:47.4]} 10. Be3 {[%clk 0:04:47.3]} 10... Nc6 {[%clk 0:04:42]} 11. Bd3
{[%clk 0:04:45.5]} 11... Bb4 {[%clk 0:04:29.4]} 12. a3 {[%clk 0:04:39.7]} 12...
Ba5 {[%clk 0:04:17.8]} 13. b4 {[%clk 0:04:36.2]} 13... Bb6 {[%clk 0:04:16.7]}
14. Nd5 {[%clk 0:04:32.2]} 14... Bxd4 {[%clk 0:03:55.4]} 15. c3 {[%clk
0:04:16.4]} 15... Bxe3 {[%clk 0:03:53.5]} 16. fxe3 {[%clk 0:04:11.9]} 16... Rd8
{[%clk 0:03:44.9]} 17. Nxc7 {[%clk 0:04:07]} 17... Rb8 {[%clk 0:03:33.7]} 18.
Ke2 {[%clk 0:03:58.2]} 18... a6 {[%clk 0:03:27.6]} 19. b5 {[%clk 0:03:49.6]}
19... Bg4+ {[%clk 0:03:24.3]} 20. Kd2 {[%clk 0:03:46.1]} 20... Ne5 {[%clk
0:03:23]} 21. bxa6 {[%clk 0:03:33.3]} 21... bxa6 {[%clk 0:03:13.3]} 22. Nxa6
{[%clk 0:03:31.8]} 22... Rxd3+ {[%clk 0:03:07.7]} 23. Kc2 {[%clk 0:03:29.6]}
23... Rbd8 {[%clk 0:03:03.2]} 24. h3 {[%clk 0:03:25.6]} 24... Bf5 {[%clk
0:02:53.9]} 25. Kb3 {[%clk 0:03:22.6]} 25... Rxe3 {[%clk 0:02:46]} 26. g4 {[%clk
0:03:12.9]} 26... Be6+ {[%clk 0:02:43.8]} 27. Kb4 {[%clk 0:03:04.6]} 27... Nd3+
{[%clk 0:02:36.8]} 28. Kb5 {[%clk 0:03:01.5]} 28... Rd5+ {[%clk 0:02:31.8]} 29.
Kb6 {[%clk 0:02:54.2]} 29... Rd6+ {[%clk 0:02:20.5]} 30. Kb7 {[%clk 0:02:50.2]}
30... Bc4 {[%clk 0:02:11.5]} 31. Rad1 {[%clk 0:02:34.5]} 31... Bxa6+ {[%clk
0:02:07.3]} 32. Kc7 {[%clk 0:02:31.7]} 32... Ree6 {[%clk 0:01:58.4]} 33. Rd2
{[%clk 0:02:23.9]} 33... Rc6+ {[%clk 0:01:51.6]} 34. Kd7 {[%clk 0:02:21.8]}
34... Red6+ {[%clk 0:01:49.7]} 35. Ke7 {[%clk 0:02:20.8]} 35... Bb5 {[%clk
0:01:39.7]} 36. Rb1 {[%clk 0:02:17.3]} 36... Re6+ {[%clk 0:01:36.7]} 37. Kd7
{[%clk 0:02:15.7]} 37... Rb6+ {[%clk 0:01:30.7]} 38. Kc7 {[%clk 0:02:10.7]}
38... Rec6+ {[%clk 0:01:25.1]} 39. Kd7 {[%clk 0:02:09.5]} 39... Ne5+ {[%clk
0:01:21.6]} 40. Ke7 {[%clk 0:02:02.7]} 40... Rc7+ {[%clk 0:01:14.9]} 41. Kd8
{[%clk 0:02:01.3]} 41... Rd7+ {[%clk 0:00:42.6]} 42. Rxd7 {[%clk 0:01:55.4]}
42... Nxd7 {[%clk 0:00:41.5]} 43. Kc7 {[%clk 0:01:53.2]} 43... Bd3 {[%clk
0:00:16.1]} 44. Rxb6 {[%clk 0:01:42.1]} 44... Nxb6 {[%clk 0:00:13.6]} 45. Kxb6
{[%clk 0:01:41.7]} 45... f5 {[%clk 0:00:10.7]} 46. Kc5 {[%clk 0:01:37.2]} 46...
f4 {[%clk 0:00:09.1]} 47. Kd4 {[%clk 0:01:35.6]} 47... Ba6 {[%clk 0:00:06]} 48.
Ke4 {[%clk 0:01:33.6]} 48... g5 {[%clk 0:00:04.5]} 49. Kf3 {[%clk 0:01:31.4]}
49... Kf8 {[%clk 0:00:03.6]} 50. Ke4 {[%clk 0:01:30.4]} 50... Ke7 {[%clk
0:00:03.2]} 51. c4 {[%clk 0:01:28.4]} 51... Kd6 {[%clk 0:00:02.8]} 52. c5+
{[%clk 0:01:27]} 52... Kc6 {[%clk 0:00:02.3]} 53. a4 {[%clk 0:01:25.6]} 53...
Kxc5 {[%clk 0:00:01]} 54. a5 {[%clk 0:01:23.7]} 54... Kb5 {[%clk 0:00:00.2]} 55.
h4 {[%clk 0:01:21.9]} 1-0

[Event "Live Chess"]
[Site "Chess.com"]
[Date "2023.05.20"]
[Round "-"]
[White "Jeffaroow"]
[Black "tpm07"]
[Result "0-1"]
[WhiteElo "460"]
[BlackElo "1961"]
[TimeControl "300"]
[EndTime "11:21:32 PDT"]
[Termination "tpm07 won by resignation"]

1. e4 {[%clk 0:04:59]} 1... c5 {[%clk 0:04:53.4]} 2. d4 {[%clk 0:04:57.1]} 2...
cxd4 {[%clk 0:04:49.3]} 3. Nf3 {[%clk 0:04:55.7]} 3... Nc6 {[%clk 0:04:45.3]} 4.
Nxd4 {[%clk 0:04:53.8]} 4... g6 {[%clk 0:04:43.7]} 5. Nxc6 {[%clk 0:04:52.3]}
5... bxc6 {[%clk 0:04:41.7]} 6. Nc3 {[%clk 0:04:47.4]} 6... Bg7 {[%clk
0:04:39.6]} 7. Bd2 {[%clk 0:04:43.8]} 7... d6 {[%clk 0:04:37.2]} 8. Bd3 {[%clk
0:04:40.2]} 8... Nf6 {[%clk 0:04:35.7]} 9. O-O {[%clk 0:04:38.4]} 9... O-O
{[%clk 0:04:33.2]} 10. Be3 {[%clk 0:04:27.3]} 10... Ng4 {[%clk 0:04:26.3]} 11.
Bc1 {[%clk 0:03:58.2]} 11... Qc7 {[%clk 0:04:15.4]} 12. f3 {[%clk 0:03:45.8]}
12... Ne5 {[%clk 0:04:10.4]} 13. Be3 {[%clk 0:03:33.3]} 13... a5 {[%clk
0:04:05.5]} 14. a4 {[%clk 0:03:27.2]} 14... Rb8 {[%clk 0:03:54]} 15. Rb1 {[%clk
0:03:19.1]} 15... Be6 {[%clk 0:03:37.6]} 16. Bd4 {[%clk 0:03:09.8]} 16... Nxf3+
{[%clk 0:03:30.8]} 17. gxf3 {[%clk 0:03:05.7]} 17... Bxd4+ {[%clk 0:03:29.7]}
18. Kh1 {[%clk 0:03:01.5]} 18... Bg7 {[%clk 0:03:26.9]} 19. f4 {[%clk
0:02:48.1]} 19... f5 {[%clk 0:03:22.1]} 20. exf5 {[%clk 0:02:44.2]} 20... Bxf5
{[%clk 0:03:19.2]} 21. Bxf5 {[%clk 0:02:38.5]} 21... Rxf5 {[%clk 0:03:19.1]} 22.
Ne4 {[%clk 0:02:26.1]} 22... c5 {[%clk 0:03:08.4]} 23. Ng5 {[%clk 0:02:23.3]}
23... Qc6+ {[%clk 0:02:54.6]} 24. Kg1 {[%clk 0:02:14.8]} 24... Bd4+ {[%clk
0:02:49]} 25. Rf2 {[%clk 0:02:07.7]} 25... Rxf4 {[%clk 0:02:44.9]} 26. Qxd4
{[%clk 0:01:50.4]} 26... Rxd4 {[%clk 0:02:41.1]} 27. Ne6 {[%clk 0:01:40.3]}
27... Rg4+ {[%clk 0:02:37.4]} 28. Kf1 {[%clk 0:01:37.2]} 28... Qh1+ {[%clk
0:02:34.2]} 29. Ke2 {[%clk 0:01:33.3]} 0-1

[Event "Live Chess"]
[Site "Chess.com"]
[Date "2023.05.20"]
[Round "-"]
[White "AttackingSnowLeopard"]
[Black "mliszewski"]
[Result "0-1"]
[WhiteElo "2049"]
[BlackElo "1905"]
[TimeControl "300"]
[EndTime "11:21:37 PDT"]
[Termination "mliszewski won by resignation"]

1. d4 {[%clk 0:04:56.7]} 1... d5 {[%clk 0:04:58.8]} 2. c4 {[%clk 0:04:55.4]}
2... e5 {[%clk 0:04:57.9]} 3. e3 {[%clk 0:04:53.1]} 3... exd4 {[%clk 0:04:55.5]}
4. exd4 {[%clk 0:04:51.9]} 4... Nf6 {[%clk 0:04:54.1]} 5. Nf3 {[%clk 0:04:50.4]}
5... Be7 {[%clk 0:04:50.5]} 6. Be2 {[%clk 0:04:49.9]} 6... O-O {[%clk
0:04:49.3]} 7. O-O {[%clk 0:04:49.5]} 7... dxc4 {[%clk 0:04:48.4]} 8. Nc3 {[%clk
0:04:48.9]} 8... a6 {[%clk 0:04:46.4]} 9. a4 {[%clk 0:04:46.8]} 9... Nc6 {[%clk
0:04:41.2]} 10. Bxc4 {[%clk 0:04:46]} 10... Bg4 {[%clk 0:04:39.8]} 11. Be3
{[%clk 0:04:42.3]} 11... Bd6 {[%clk 0:04:23]} 12. Be2 {[%clk 0:04:41]} 12... Re8
{[%clk 0:04:19.9]} 13. h3 {[%clk 0:04:40]} 13... Bh5 {[%clk 0:04:18.1]} 14. d5
{[%clk 0:04:37.1]} 14... Nb4 {[%clk 0:04:12]} 15. Qd4 {[%clk 0:04:26.2]} 15...
Nbxd5 {[%clk 0:04:04.2]} 16. Nxd5 {[%clk 0:04:19]} 16... Nxd5 {[%clk 0:03:59.8]}
17. Bg5 {[%clk 0:04:17]} 17... Nf6 {[%clk 0:03:51.5]} 18. Bc4 {[%clk 0:04:10.7]}
18... Bxf3 {[%clk 0:03:46.9]} 19. gxf3 {[%clk 0:04:10]} 19... Bh2+ {[%clk
0:03:45.4]} 0-1

[Event "Live Chess"]
[Site "Chess.com"]
[Date "2023.05.20"]
[Round "-"]
[White "ramses-IIG"]
[Black "friarnator"]
[Result "0-1"]
[WhiteElo "785"]
[BlackElo "1997"]
[TimeControl "300"]
[EndTime "11:21:41 PDT"]
[Termination "friarnator won by checkmate"]

1. e4 {[%clk 0:04:58.4]} 1... Nf6 {[%clk 0:04:55.9]} 2. Nf3 {[%clk 0:04:58.3]}
2... Nxe4 {[%clk 0:04:55.1]} 3. Qe2 {[%clk 0:04:53.6]} 3... Nf6 {[%clk
0:04:53.9]} 4. Ne5 {[%clk 0:04:41.4]} 4... d6 {[%clk 0:04:51.6]} 5. Nf3 {[%clk
0:04:36.7]} 5... g6 {[%clk 0:04:50.4]} 6. h3 {[%clk 0:04:35.8]} 6... Bg7 {[%clk
0:04:49.4]} 7. c3 {[%clk 0:04:33.2]} 7... O-O {[%clk 0:04:49]} 8. d4 {[%clk
0:04:33.1]} 8... Nbd7 {[%clk 0:04:44.6]} 9. Bg5 {[%clk 0:04:31.2]} 9... h6
{[%clk 0:04:43.1]} 10. Bf4 {[%clk 0:04:27.9]} 10... c6 {[%clk 0:04:38.3]} 11.
Qd2 {[%clk 0:04:27]} 11... e5 {[%clk 0:04:36.3]} 12. Bxh6 {[%clk 0:04:25.9]}
12... e4 {[%clk 0:04:29.6]} 13. Bxg7 {[%clk 0:04:22.8]} 13... Kxg7 {[%clk
0:04:27]} 14. Ng5 {[%clk 0:04:11.5]} 14... e3 {[%clk 0:04:24.2]} 15. fxe3 {[%clk
0:04:07.4]} 15... Re8 {[%clk 0:04:22.9]} 16. h4 {[%clk 0:03:53.9]} 16... Qe7
{[%clk 0:04:18.3]} 17. Na3 {[%clk 0:03:38.7]} 17... Ng4 {[%clk 0:04:05]} 18.
O-O-O {[%clk 0:03:09.4]} 18... Qxe3 {[%clk 0:03:55.7]} 19. Qxe3 {[%clk
0:03:01.3]} 19... Rxe3 {[%clk 0:03:55.6]} 20. Rd2 {[%clk 0:02:53.5]} 20... Ndf6
{[%clk 0:03:51.7]} 21. Bc4 {[%clk 0:02:47.2]} 21... d5 {[%clk 0:03:47.6]} 22.
Be2 {[%clk 0:02:36.9]} 22... Bf5 {[%clk 0:03:44.5]} 23. Bxg4 {[%clk 0:02:30.2]}
23... Nxg4 {[%clk 0:03:42.3]} 24. h5 {[%clk 0:02:14.2]} 24... gxh5 {[%clk
0:03:42.2]} 25. Rxh5 {[%clk 0:02:12.6]} 25... Kg6 {[%clk 0:03:41.8]} 26. Rh7
{[%clk 0:01:49.7]} 26... Kxg5 {[%clk 0:03:39]} 27. Rxf7 {[%clk 0:01:48.9]} 27...
Re1+ {[%clk 0:03:37.4]} 28. Rd1 {[%clk 0:01:45.9]} 28... Rae8 {[%clk 0:03:37.2]}
29. b3 {[%clk 0:01:42.2]} 29... Rxd1+ {[%clk 0:03:19.3]} 30. Kxd1 {[%clk
0:01:40.8]} 30... Nf2+ {[%clk 0:03:19.2]} 31. Kc1 {[%clk 0:01:37.8]} 31... Re1+
{[%clk 0:03:07.4]} 32. Kd2 {[%clk 0:01:32.5]} 32... Ra1 {[%clk 0:03:06.5]} 33.
c4 {[%clk 0:01:24.4]} 33... Rxa2+ {[%clk 0:03:04.9]} 34. Kc3 {[%clk 0:01:20.2]}
34... a5 {[%clk 0:02:59.8]} 35. Rg7+ {[%clk 0:00:32]} 35... Kf6 {[%clk
0:02:56.6]} 36. Nb5 {[%clk 0:00:16.5]} 36... Nd1# {[%clk 0:02:49]} 0-1